bitfinex-derivatives/quotes_ETHF0:USTF0_20241005
["timestamp","ask_amount","ask_price","bid_price","bid_amount"]
[1728100152086,4.4563,2401.3,2401.2,0.53486707]
[1728100152284,0.2915,2401.2,2401.1,0.85578356]
[1728100152490,1.0727,2401.2,2401.1,0.85578356]
[1728100154190,4.2805,2401.2,2401.1,0.85578356]
[1728100155495,4.2805,2401.2,2400.8,1.05]
[1728100155496,0.29153,2401.0,2400.8,1.34154]
[1728100155698,0.29153,2401.0,2400.9,0.53458411]
[1728100156090,0.29153,2401.0,2400.9,0.82607207]
[1728100157393,3.989,2401.2,2400.9,0.82607207]
[1728100157394,0.29152,2401.1,2400.9,0.82607207]
[1728100157594,0.29152,2401.1,2401.0,0.53453207]
[1728100159394,0.29152,2401.1,2401.0,0.53446454]
[1728100162690,0.29152,2401.1,2401.0,0.53504294]
[1728100163801,0.70692,2401.1,2401.0,0.82657294]
[1728100164903,0.70692,2401.1,2401.0,1.25417294]
[1728100165099,0.4154,2401.1,2401.0,1.25417294]
[1728100166304,0.4154,2401.1,2401.0,2.04497294]
[1728100166506,0.70691,2401.1,2401.0,2.04496322]
[1728100167102,0.70691,2401.1,2401.0,1.75343322]
[1728100172699,0.29151,2401.1,2401.0,1.75343322]
[1728100176013,0.29151,2401.1,2401.0,1.75351575]
[1728100176211,0.29151,2401.1,2401.0,2.28863157]
[1728100177209,0.7812,2401.2,2401.0,2.58015157]
[1728100177210,0.29151,2401.2,2401.0,2.58015157]
[1728100177410,0.29151,2401.2,2401.0,2.04503575]
[1728100177613,0.29151,2401.1,2401.0,1.75351575]
[1728100177802,0.29151,2401.1,2401.0,2.28865089]
[1728100179913,0.29151,2401.1,2401.0,1.75351575]
[1728100180124,0.29151,2401.1,2401.0,2.28863487]
[1728100183714,3.87057399,2401.3,2401.0,2.28863487]
[1728100183715,0.29151,2401.2,2401.0,6.74495487]
[1728100183917,0.29151,2401.2,2401.1,1.58511912]
[1728100185324,0.29151,2401.2,2401.1,1.5849925]
[1728100187023,0.29151,2401.2,2401.1,1.05]
[1728100188026,0.29151,2401.2,2401.1,1.5850749]
[1728100189419,3.02204399,2401.2,2401.1,1.5850749]
[1728100190124,2.73053399,2401.2,2401.0,0.8204]
[1728100190325,2.73053399,2401.2,2400.7,2.09107567]
[1728100190326,0.29153,2401.0,2400.7,2.72071946]
[1728100190523,0.3966,2400.9,2400.8,1.78420452]
[1728100190725,0.68815,2400.9,2400.8,1.78420452]
[1728100192919,0.68815,2400.9,2400.8,2.83420452]
[1728100193924,0.3966,2400.9,2400.8,3.92386398]
[1728100194129,2.73053399,2401.0,2400.8,4.21541398]
[1728100194130,0.29153,2401.0,2400.8,4.21541398]
[1728100194325,0.29153,2401.0,2400.9,1.39190452]
[1728100195122,5.93833399,2401.1,2400.9,1.39190452]
[1728100195323,2.73053399,2401.1,2401.0,2.44172269]
[1728100195532,2.73053399,2401.1,2401.0,2.73325269]
[1728100196226,2.73053399,2401.1,2401.0,1.34153]
[1728100196430,2.73053399,2401.1,2401.0,2.73336343]
[1728100198337,2.73053399,2401.1,2401.0,2.44183343]
[1728100199030,2.73053399,2401.1,2401.0,3.82302289]
[1728100199231,3.26393304,2401.4,2401.1,0.29151]
[1728100199232,2.73053399,2401.2,2401.1,0.29151]
[1728100199440,2.73053399,2401.3,2401.1,5.04926717]
[1728100199632,2.73053399,2401.3,2401.2,1.39183343]
[1728100200040,2.73053399,2401.3,2401.2,1.39251554]
[1728100200642,3.02202399,2401.3,2401.2,1.39251554]
[1728100200836,4.45629,2401.3,2401.2,1.39251554]
[1728100201045,5.50629,2401.3,2401.2,0.5355829]
[1728100201336,8.77022304,2401.3,2400.8,2.54222374]
[1728100201534,8.77022304,2401.3,2400.9,1.39330004]
[1728100201535,3.02454454,2401.0,2400.9,1.39330004]
[1728100202040,3.42914454,2401.0,2400.9,1.39330004]
[1728100204137,3.13761454,2401.0,2400.9,1.68484004]
[1728100204538,3.13761454,2401.0,2400.9,1.39330004]
[1728100204738,3.42914454,2401.0,2400.9,1.39330004]
[1728100205046,3.42914454,2401.0,2400.8,2.83376374]
[1728100205350,3.42914454,2401.0,2400.9,1.39314963]
[1728100208344,3.13761454,2401.0,2400.8,2.54222374]
[1728100208556,0.29154,2400.9,2400.8,2.54222374]
[1728100208748,0.29154,2400.9,2400.8,3.93624465]
[1728100208952,0.29154,2400.9,2400.8,3.93624222]
[1728100211751,0.29154,2400.9,2400.8,2.54222374]
[1728100211951,0.29154,2400.9,2400.8,3.93484718]
[1728100215048,0.29154,2400.9,2400.8,2.54222374]
[1728100215252,0.29154,2400.9,2400.8,3.93553298]
[1728100215644,3.02454454,2401.0,2400.8,4.22708298]
[1728100215848,3.02454454,2401.0,2400.9,1.81700924]
[1728100216044,0.29153,2401.0,2400.9,1.81700924]
[1728100218451,0.29153,2401.0,2400.9,1.81743921]
[1728100218855,0.29153,2401.0,2400.9,1.81733214]
[1728100219154,0.8104,2401.2,2401.0,0.29153]
[1728100219155,3.02452454,2401.2,2401.0,0.29153]
[1728100219343,3.02452454,2401.2,2401.1,2.22553214]
[1728100224054,2.73301454,2401.2,2401.1,2.22553214]
[1728100224262,0.3989,2401.4,2401.1,2.22553214]
[1728100224263,2.73301454,2401.3,2401.1,2.22553214]
[1728100224456,0.2915,2401.2,2401.1,0.8319]
[1728100224656,3.02451454,2401.2,2401.1,2.22429269]
[1728100225462,3.02451454,2401.2,2401.1,2.22426674]
[1728100225661,0.2915,2401.2,2401.1,2.22426674]
[1728100226458,3.02451454,2401.2,2401.1,2.22426674]
[1728100226658,0.2915,2401.2,2401.1,2.22426674]
[1728100229862,0.2915,2401.2,2401.1,1.81226674]
[1728100230172,3.42081454,2401.2,2401.1,1.81226674]
[1728100231465,0.6878,2401.2,2401.1,1.81226674]
[1728100231764,0.6878,2401.2,2401.1,1.81231648]
[1728100233070,0.3963,2401.2,2401.1,1.81231648]
[1728100233268,3.02451454,2401.3,2401.1,1.81231648]
[1728100233269,2.73301454,2401.3,2401.1,2.10381648]
[1728100233466,2.73301454,2401.3,2401.2,2.24678458]
[1728100233766,3.02450454,2401.3,2401.2,2.24678458]
[1728100233973,0.29149,2401.3,2401.2,2.24678458]
[1728100234368,2.73301454,2401.3,2401.2,2.4398448]
[1728100234571,6.63119454,2401.4,2401.2,3.58827455]
[1728100234768,6.33971454,2401.4,2401.3,0.5355448]
[1728100234963,6.33971454,2401.4,2401.3,0.53571598]
[1728100235375,6.63119454,2401.4,2401.3,0.53571598]
[1728100236870,6.23229454,2401.4,2401.3,1.58571598]
[1728100238079,3.02449454,2401.4,2401.3,1.58571598]
[1728100238377,3.02449454,2401.4,2401.3,1.58611078]
[1728100238581,3.02449454,2401.4,2401.3,1.05]
[1728100238774,3.02449454,2401.4,2401.3,1.58619314]
[1728100238971,3.02449454,2401.4,2401.3,0.53619314]
[1728100239171,3.44129454,2401.4,2401.3,0.53619314]
[1728100241172,2.73301454,2401.4,2401.3,0.82768314]
[1728100241374,2.73301454,2401.5,2401.4,0.29148]
[1728100241579,6.62407454,2401.6,2401.4,1.5860432]
[1728100241781,6.62406454,2401.6,2401.5,0.5360432]
[1728100241979,6.62406454,2401.6,2401.5,0.9321432]
[1728100242884,3.89105,2401.6,2401.5,0.9321432]
[1728100244678,3.89105,2401.6,2401.5,0.3961]
[1728100244886,0.68325,2401.6,2401.5,0.93161417]
[1728100246389,0.68325,2401.6,2401.5,0.3961]
[1728100246685,0.68325,2401.6,2401.4,1.34148]
[1728100246686,0.29146,2401.5,2401.4,1.05]
[1728100246884,0.29146,2401.5,2401.4,1.58521931]
[1728100248087,0.29146,2401.5,2401.4,1.58517818]
[1728100248384,0.29146,2401.5,2401.4,1.05]
[1728100248688,0.29146,2401.5,2401.4,1.58516024]
[1728100250480,0.3918,2401.6,2401.4,1.58516024]
[1728100250684,0.3918,2401.6,2401.4,1.05]
[1728100250879,0.29146,2401.5,2401.4,1.05]
[1728100251079,0.29146,2401.5,2401.4,1.58508983]
[1728100251283,0.3918,2401.6,2401.4,1.58508983]
[1728100251487,0.68326,2401.6,2401.5,0.3971]
[1728100251788,0.68326,2401.6,2401.5,0.7847]
[1728100254688,3.49925,2401.7,2401.5,0.7847]
[1728100254888,3.49925,2401.7,2401.5,1.07616]
[1728100255095,3.49925,2401.7,2401.6,1.4376]
[1728100255788,3.2078,2401.7,2401.6,5.6016]
[1728100256386,3.49924,2401.7,2401.6,5.6016]
[1728100256990,3.49924,2401.7,2401.6,1.4376]
[1728100257889,3.2078,2401.7,2401.6,1.4376]
[1728100258092,0.29144,2401.7,2401.6,1.4376]
[1728100258486,3.15151454,2401.9,2401.6,1.4376]
[1728100258686,0.29143,2401.8,2401.6,1.4376]
[1728100259895,0.29144,2401.7,2401.6,1.4376]
[1728100260401,0.29144,2401.7,2401.6,1.97263832]
[1728100260986,0.29144,2401.7,2401.6,1.97254878]
[1728100261386,0.29144,2401.7,2401.6,1.4376]
[1728100261592,0.29144,2401.7,2401.6,1.97255846]
[1728100262401,3.15151454,2401.9,2401.6,1.97255846]
[1728100262590,0.29143,2401.8,2401.6,1.4376]
[1728100262993,0.29144,2401.7,2401.6,1.4376]
[1728100263195,0.29143,2401.8,2401.6,2.26395173]
[1728100263406,0.29143,2401.8,2401.6,1.72905]
[1728100263697,0.29143,2401.8,2401.7,1.05]
[1728100269298,2.73301454,2402.0,2401.8,0.29143]
[1728100269607,3.74793304,2402.3,2402.2,0.29138]
[1728100269608,0.8895,2402.3,2402.2,0.29138]
[1728100269794,0.85035,2402.5,2402.2,0.29138]
[1728100269795,0.4055,2402.5,2402.3,0.29136]
[1728100269998,0.4055,2402.5,2402.4,0.3955]
[1728100270406,3.64541454,2402.8,2402.4,6.29890309]
[1728100270407,0.69682,2402.7,2402.4,6.29890309]
[1728100270604,0.4055,2402.7,2402.5,0.3991]
[1728100270811,0.69683,2402.7,2402.6,1.05]
[1728100274004,0.4055,2402.7,2402.6,1.05]
[1728100275007,0.69682,2402.7,2402.6,1.05]
[1728100275807,0.29132,2402.7,2402.6,1.05]
[1728100276304,0.806,2402.9,2402.6,1.05]
[1728100276508,0.806,2402.9,2402.8,1.05]
[1728100276708,1.0973,2402.9,2402.8,1.05]
[1728100277010,0.699,2402.9,2402.8,1.4519]
[1728100277209,0.4077,2402.9,2402.8,1.74321]
[1728100277404,3.2078,2403.0,2402.8,1.4519]
[1728100277709,3.49908,2403.0,2402.8,1.4519]
[1728100278302,0.484,2403.3,2403.0,0.29128]
[1728100278506,3.49904,2403.4,2403.2,1.05]
[1728100279010,3.2078,2403.4,2403.2,1.4598]
[1728100279306,3.49904,2403.4,2403.2,1.4598]
[1728100280305,0.29125,2403.3,2403.2,1.4598]
[1728100280503,3.49904,2403.4,2403.2,1.4598]
[1728100280899,3.2078,2403.4,2403.2,1.75105]
[1728100281115,0.29122,2403.5,2403.3,0.4224]
[1728100281308,1.53462,2403.6,2403.4,1.05]
[1728100281501,0.71252,2403.6,2403.4,1.05]
[1728100281904,0.4213,2403.6,2403.4,1.05]
[1728100282103,0.29122,2403.5,2403.4,1.05]
[1728100282511,0.29122,2403.5,2403.4,5.2108]
[1728100283005,0.4213,2403.6,2403.4,5.2108]
[1728100283006,0.71252,2403.6,2403.4,5.2108]
[1728100283208,0.71252,2403.6,2403.4,1.05]
[1728100283410,0.4213,2403.6,2403.5,0.915]
[1728100284098,0.2912,2403.7,2403.5,0.915]
[1728100284302,0.2912,2403.7,2403.6,1.4725]
[1728100284505,3.49899,2403.8,2403.6,1.8875]
[1728100284814,3.2078,2403.8,2403.6,2.17871]
[1728100285015,3.49899,2403.8,2403.6,1.8875]
[1728100285206,0.2912,2403.7,2403.6,1.8875]
[1728100285406,3.2078,2403.8,2403.6,1.8875]
[1728100285705,3.2078,2403.8,2403.7,0.2912]
[1728100285908,0.484,2404.1,2404.0,0.29116]
[1728100286116,0.29112,2404.4,2404.1,0.29115]
[1728100286117,0.484,2404.4,2404.1,0.29115]
[1728100286305,0.29112,2404.4,2404.2,1.4421]
[1728100286907,1.60591,2404.7,2404.2,1.4421]
[1728100287209,0.29112,2404.4,2404.2,0.3921]
[1728100287604,0.29111,2404.5,2404.2,0.3921]
[1728100288001,0.2911,2404.6,2404.2,0.68324]
[1728100288206,0.29111,2404.5,2404.2,0.3921]
[1728100288409,0.3942,2404.7,2404.2,0.3921]
[1728100288612,0.29117,2403.9,2403.8,2.6722]
[1728100288811,0.29117,2403.9,2403.8,2.27]
[1728100291125,3.2078,2404.1,2403.8,2.27]
[1728100291317,0.29117,2403.9,2403.8,2.27]
[1728100295218,0.29116,2404.1,2403.8,2.56118]
[1728100295421,0.29116,2404.1,2404.0,2.27]
[1728100295615,0.4044,2404.2,2404.0,2.27]
[1728100295922,0.29115,2404.1,2404.0,2.27]
[1728100298613,0.29118,2403.9,2403.8,3.184]
[1728100300523,0.29118,2403.9,2403.8,2.27]
[1728100308929,3.49896,2404.1,2403.8,6.72118]
[1728100309229,0.29117,2404.0,2403.8,2.27]
[1728100309639,0.29117,2404.0,2403.9,1.05]
[1728100312733,3.2078,2404.2,2403.9,1.05]
[1728100313228,3.2078,2404.2,2403.9,1.4367]
[1728100313229,0.29116,2404.0,2403.9,1.4367]
[1728100313826,0.29116,2404.0,2403.9,1.05]
[1728100317829,0.29116,2404.0,2403.9,1.4376]
[1728100320327,3.02417454,2404.0,2403.9,1.4376]
[1728100320532,0.29119,2403.8,2403.5,1.20522]
[1728100320731,0.2912,2403.7,2403.6,1.05]
[1728100320934,6.23200454,2403.8,2403.6,1.34121]
[1728100321146,6.23200454,2403.8,2403.1,0.914]
[1728100321147,0.29122,2403.6,2403.1,0.914]
[1728100321334,0.29122,2403.6,2403.5,1.05]
[1728100322637,0.29122,2403.6,2403.5,1.4664]
[1728100323736,0.29122,2403.6,2403.4,1.4776]
[1728100323737,0.29122,2403.5,2403.4,1.4776]
[1728100323946,1.10242,2403.5,2403.4,1.4776]
[1728100324442,1.1157,2403.7,2403.4,1.76883]
[1728100324736,1.1157,2403.7,2403.6,1.05]
[1728100324942,5.2757,2403.7,2403.6,1.05]
[1728100325437,4.4512,2403.7,2403.6,1.05]
[1728100325643,5.6689,2403.7,2403.6,1.05]
[1728100326139,1.5089,2403.7,2403.6,1.05]
[1728100326734,0.29121,2403.6,2403.5,1.05]
[1728100328832,1.2177,2403.7,2403.5,1.05]
[1728100329245,1.5089,2403.7,2403.5,1.05]
[1728100329434,2.73301454,2403.6,2403.5,1.05]
[1728100330843,1.5089,2403.7,2403.5,1.05]
[1728100331146,2.72484495,2403.6,2403.5,1.05]
[1728100331346,2.72484495,2403.6,2403.5,1.34122]
[1728100331548,2.72484495,2403.6,2403.5,1.05]
[1728100333347,2.72541042,2403.6,2403.5,1.05]
[1728100333949,2.72543751,2403.6,2403.5,1.05]
[1728100334145,0.7132,2403.7,2403.5,1.05]
[1728100335246,2.72604341,2403.6,2403.5,1.34122]
[1728100335547,7.52279946,2404.1,2403.6,0.29121]
[1728100335548,2.72604341,2403.8,2403.6,0.29121]
[1728100335745,2.72604341,2403.9,2403.7,1.05]
[1728100336049,2.72604341,2403.9,2403.8,1.61459]
[1728100336448,3.49896,2404.1,2403.8,5.77459]
[1728100336449,5.93384341,2404.1,2403.8,5.77459]
[1728100336638,5.93384341,2404.1,2404.0,1.05]
[1728100336639,6.22499341,2404.1,2404.0,1.05]
[1728100337149,3.49895,2404.1,2404.0,1.05]
[1728100337345,3.2078,2404.1,2404.0,1.05]
[1728100338448,3.2078,2404.1,2404.0,1.34116]
[1728100338952,3.2078,2404.1,2404.0,6.03323504]
[1728100339252,3.2078,2404.1,2404.0,6.03320698]
[1728100342442,3.2078,2404.1,2404.0,6.03305831]
[1728100343747,3.49893,2404.3,2404.0,6.03305831]
[1728100343954,3.49893,2404.3,2404.2,1.05]
[1728100344455,3.2078,2404.3,2404.2,1.05]
[1728100344652,5.93384341,2404.3,2404.2,1.05]
[1728100344859,5.93384341,2404.3,2404.2,1.445]
[1728100345149,2.72604341,2404.3,2404.2,1.445]
[1728100345749,3.01717341,2404.3,2404.2,1.445]
[1728100346247,0.8072,2404.4,2404.2,1.445]
[1728100346248,3.53324341,2404.4,2404.2,1.445]
[1728100346457,2.72604341,2404.4,2404.3,0.29113]
[1728100346658,2.72604341,2404.5,2404.2,1.445]
[1728100346851,3.01715341,2404.5,2404.4,1.05]
[1728100348250,0.29111,2404.5,2404.4,1.05]
[1728100361362,3.49891,2404.5,2404.4,1.05]
[1728100364466,0.29111,2404.5,2404.4,1.05]
[1728100367969,0.29111,2404.4,2404.3,1.05]
[1728100368165,0.29114,2404.2,2404.1,2.3735]
[1728100369278,0.29114,2404.2,2404.1,1.4605]
[1728100370669,0.29114,2404.2,2404.1,0.4105]
[1728100370870,0.29114,2404.2,2404.1,1.4605]
[1728100370871,3.0106396,2404.2,2404.1,1.4605]
[1728100371376,0.29114,2404.2,2404.1,1.4605]
[1728100371677,3.01157974,2404.2,2404.1,1.4605]
[1728100372276,0.29114,2404.2,2404.1,1.4605]
[1728100380284,0.29114,2404.2,2404.1,1.99328039]
[1728100381276,3.01295648,2404.2,2404.1,1.99328039]
[1728100381988,3.01295648,2404.2,2404.1,1.4605]
[1728100382283,3.01295648,2404.2,2404.1,1.99360992]
[1728100382284,0.29114,2404.2,2404.1,1.99360992]
[1728100382475,3.01884564,2404.2,2404.1,1.99360992]
[1728100383381,0.29114,2404.2,2404.1,1.4605]
[1728100385079,0.8081,2404.3,2404.1,1.4605]
[1728100385383,1.09923,2404.3,2404.1,1.75164]
[1728100385579,1.09923,2404.3,2404.2,0.3962]
[1728100386784,0.3891,2404.3,2404.2,0.68734]
[1728100386984,3.49892,2404.4,2404.2,0.68734]
[1728100387183,3.49892,2404.4,2404.3,0.3998]
[1728100387687,7.65812,2404.4,2404.3,0.3998]
[1728100388082,7.16803304,2404.5,2404.3,1.74092]
[1728100389697,4.31499946,2404.4,2404.3,1.74093]
[1728100389989,4.31499946,2404.4,2404.3,1.4498]
[1728100389990,0.29111,2404.4,2404.3,1.4498]
[1728100390490,4.60610946,2404.4,2404.3,1.4498]
[1728100392886,4.11049145,2404.4,2404.3,1.98283891]
[1728100394677,4.11049145,2404.4,2404.3,2.27396891]
[1728100394678,3.81938145,2404.4,2404.3,2.27396891]
[1728100395292,4.11049145,2404.4,2404.3,2.27396891]
[1728100395592,4.11049145,2404.4,2404.3,1.74093]
[1728100395793,4.11049145,2404.4,2404.3,2.27390626]
[1728100395990,4.11049145,2404.4,2404.3,1.4498]
[1728100396291,4.11049145,2404.4,2404.3,1.98277368]
[1728100396883,0.29111,2404.4,2404.3,1.98277368]
[1728100397291,0.29111,2404.4,2404.3,1.4498]
[1728100399088,0.29111,2404.4,2404.3,1.74093]
[1728100399984,3.90411,2404.5,2404.3,1.74093]
[1728100400185,3.90411,2404.5,2404.3,1.4498]
[1728100400387,2.72804472,2404.4,2404.3,1.74093]
[1728100403290,3.01915472,2404.4,2404.3,1.74093]
[1728100403898,3.56486,2404.4,2404.3,1.74093]
[1728100404194,3.56486,2404.4,2404.3,1.4498]
[1728100404599,0.29111,2404.4,2404.3,1.4498]
[1728100405393,0.29111,2404.4,2404.3,1.74093]
[1728100405587,0.29111,2404.4,2404.3,3.12600191]
[1728100406400,0.29111,2404.4,2404.3,3.12588464]
[1728100408102,0.29111,2404.4,2404.3,2.27360486]
[1728100408499,6.77266,2404.5,2404.3,2.27360486]
[1728100408693,6.77265,2404.5,2404.4,0.53267486]
[1728100409297,6.77265,2404.5,2404.4,0.53233433]
[1728100411899,3.4989,2404.5,2404.4,0.53233433]
[1728100412100,5.93412154,2404.5,2404.3,1.05]
[1728100412306,0.68341,2404.4,2404.3,1.05]
[1728100412508,0.68341,2404.4,2404.3,1.58237997]
[1728100413504,3.40973154,2404.4,2404.3,0.53237997]
[1728100413703,0.29113,2404.3,2404.2,1.05]
[1728100413910,3.82155154,2404.3,2404.2,1.58246667]
[1728100414303,3.82155154,2404.3,2404.2,1.05]
[1728100416802,3.82155154,2404.3,2404.2,1.58242712]
[1728100417008,0.69673,2404.3,2404.2,1.87356712]
[1728100417208,0.69673,2404.3,2404.2,1.58242712]
[1728100417597,0.69673,2404.3,2404.2,5.74162712]
[1728100417796,0.29113,2404.3,2404.2,1.98512712]
[1728100418010,0.69293,2404.3,2404.2,1.98512712]
[1728100418812,0.4018,2404.3,2404.2,2.27626712]
[1728100419813,0.4018,2404.3,2404.2,1.74384]
[1728100420106,0.4018,2404.3,2404.2,2.27619897]
[1728100420605,3.56487,2404.4,2404.2,1.74384]
[1728100420811,3.56487,2404.4,2404.3,1.05]
[1728100424910,3.27375,2404.4,2404.3,1.34113]
[1728100425213,3.56486,2404.4,2404.3,1.05]
[1728100425414,3.27375,2404.4,2404.3,1.05]
[1728100425618,0.29113,2404.3,2404.2,0.4027]
[1728100425813,3.56488,2404.3,2404.2,1.4527]
[1728100426012,0.29113,2404.3,2404.2,2.3637]
[1728100426221,3.56488,2404.3,2404.2,2.3637]
[1728100427113,3.01798158,2404.3,2404.2,2.3637]
[1728100427814,3.01798158,2404.3,2404.2,2.8964813]
[1728100430424,3.01798158,2404.3,2404.2,2.3637]
[1728100430612,3.01798158,2404.3,2404.2,2.89659121]
[1728100432514,2.72685158,2404.3,2404.2,3.18773121]
[1728100433212,2.72685158,2404.3,2404.2,2.89659121]
[1728100434017,2.72685158,2404.3,2404.2,2.3637]
[1728100434222,2.72685158,2404.3,2404.2,2.89664279]
[1728100434813,3.01798158,2404.3,2404.2,2.3637]
[1728100436120,3.01798158,2404.3,2404.2,2.65484]
[1728100436121,2.72685158,2404.3,2404.2,2.65484]
[1728100438724,3.01796158,2404.4,2404.2,2.65484]
[1728100438925,3.01796158,2404.4,2404.3,1.05]
[1728100439819,2.72685158,2404.4,2404.3,1.05]
[1728100440125,2.72783608,2404.4,2404.3,1.05]
[1728100440329,2.72783608,2404.4,2404.3,1.34113]
[1728100442124,3.27375,2404.4,2404.3,1.34113]
[1728100442323,3.56486,2404.4,2404.3,1.05]
[1728100443013,3.56486,2404.4,2404.3,2.43586256]
[1728100443219,3.56486,2404.4,2404.3,1.58302077]
[1728100443624,3.56486,2404.4,2404.3,1.05]
[1728100443822,3.56486,2404.4,2404.3,1.58302108]
[1728100444520,3.27375,2404.4,2404.3,1.58302108]
[1728100444926,3.56486,2404.4,2404.3,1.58302108]
[1728100447227,3.27375,2404.4,2404.3,1.05]
[1728100448833,3.56486,2404.4,2404.3,1.05]
[1728100449223,0.29111,2404.4,2404.3,1.05]
[1728100449431,0.29111,2404.4,2404.3,1.58252732]
[1728100449927,0.29111,2404.4,2404.3,1.44352732]
[1728100450136,0.29111,2404.4,2404.3,1.58252732]
[1728100450327,0.29111,2404.4,2404.3,1.05]
[1728100453831,3.11677347,2404.5,2404.3,1.05]
[1728100454027,0.29111,2404.4,2404.3,1.05]
[1728100454227,0.29111,2404.4,2404.3,1.58230394]
[1728100457128,3.56486,2404.4,2404.3,1.58230394]
[1728100457738,3.56486,2404.4,2404.3,0.53230394]
[1728100457941,3.56486,2404.4,2404.3,1.58230394]
[1728100462037,3.56486,2404.4,2404.3,0.53230394]
[1728100462237,3.56486,2404.4,2404.2,1.05]
[1728100462238,4.1592,2404.4,2404.2,1.05]
[1728100462431,4.11149326,2404.3,2404.2,1.05]
[1728100462631,4.11149326,2404.3,2404.2,1.58275224]
[1728100463036,4.11149326,2404.3,2404.2,1.58275689]
[1728100463437,4.11149326,2404.3,2404.2,1.58276857]
[1728100464050,4.11149326,2404.3,2404.2,0.53276857]
[1728100464237,7.31929326,2404.3,2404.2,1.58276857]
[1728100464439,3.49893,2404.3,2404.2,1.05]
[1728100466148,7.65813,2404.3,2404.2,1.05]
[1728100466346,6.77340011,2404.3,2404.2,1.05]
[1728100466549,3.49893,2404.3,2404.2,1.05]
[1728100466844,7.65813,2404.3,2404.2,1.05]
[1728100467738,10.93260011,2404.3,2404.2,1.05]
[1728100467946,11.35070011,2404.3,2404.2,1.05]
[1728100468141,8.07623,2404.3,2404.2,1.05]
[1728100468340,11.35070011,2404.3,2404.2,1.05]
[1728100468535,8.07623,2404.3,2404.2,1.05]
[1728100469849,4.86843,2404.3,2404.2,1.05]
[1728100470247,3.91703,2404.3,2404.2,1.05]
[1728100470451,8.07623,2404.3,2404.2,1.05]
[1728100470649,3.91703,2404.3,2404.2,1.05]
[1728100471647,4.33043,2404.3,2404.2,1.05]
[1728100473943,7.05668961,2404.3,2404.2,1.05]
[1728100474349,3.84888961,2404.3,2404.2,1.05]
[1728100474556,3.84888961,2404.3,2404.2,1.476]
[1728100476347,3.84888961,2404.3,2403.8,0.3863]
[1728100476348,3.55775961,2404.3,2403.8,0.3863]
[1728100476649,0.29116,2404.0,2403.9,2.3563]
[1728100480160,0.29116,2404.0,2403.9,1.4463]
[1728100484447,3.27447011,2404.1,2403.9,1.73747]
[1728100484648,3.56562011,2404.1,2404.0,1.05]
[1728100485554,0.29115,2404.1,2404.0,1.05]
[1728100485754,6.48227011,2404.2,2404.0,1.05]
[1728100485957,6.48227011,2404.2,2404.1,0.4044]
[1728100485958,6.77342011,2404.2,2404.1,0.4044]
[1728100486458,6.77342011,2404.2,2404.1,0.819]
[1728100487164,3.56562011,2404.2,2404.1,0.819]
[1728100487361,0.29115,2404.2,2404.1,0.819]
[1728100487568,2.72427367,2404.2,2404.0,1.05]
[1728100487856,1.53485,2404.1,2404.0,1.05]
[1728100488255,1.53485,2404.1,2403.7,4.0046]
[1728100488256,0.29119,2403.8,2403.7,3.499]
[1728100488458,0.29119,2403.8,2403.7,4.9555]
[1728100489363,10.79397691,2404.1,2403.7,4.9555]
[1728100489559,0.29118,2403.9,2403.7,4.9555]
[1728100490464,0.29116,2404.0,2403.7,4.6643]
[1728100490761,0.29119,2403.8,2403.7,4.6643]
[1728100490962,0.29119,2403.8,2403.7,4.9555]
[1728100491172,0.29118,2403.9,2403.7,4.95549]
[1728100494364,2.72427367,2403.8,2403.7,1.74769]
[1728100495868,2.72427367,2403.8,2403.7,2.28024513]
[1728100499463,2.72427367,2403.8,2403.7,2.28026595]
[1728100500866,0.29117,2403.9,2403.7,1.98907595]
[1728100501076,0.29117,2403.9,2403.7,1.4565]
[1728100501568,0.3958,2403.8,2403.7,1.4565]
[1728100501966,0.3958,2403.8,2403.7,1.98919026]
[1728100502166,0.3958,2403.8,2403.7,1.4565]
[1728100502373,0.3958,2403.8,2403.7,1.98919055]
[1728100502966,0.3958,2403.8,2403.7,1.7477]
[1728100503868,0.3958,2403.8,2403.7,1.4565]
[1728100507070,0.3958,2403.8,2403.7,1.7477]
[1728100507669,0.3958,2403.8,2403.7,1.4565]
[1728100507865,0.3958,2403.8,2403.7,1.7477]
[1728100508675,0.3958,2403.8,2403.7,1.4565]
[1728100509278,0.3958,2403.8,2403.7,1.7477]
[1728100509477,3.12113882,2403.8,2403.7,1.7477]
[1728100511077,3.12113882,2403.8,2403.7,3.13376632]
[1728100511984,3.12113882,2403.8,2403.7,3.13381266]
[1728100512382,3.12113882,2403.8,2403.7,3.13387791]
[1728100515183,3.12113882,2403.8,2403.7,1.7477]
[1728100515478,3.12113882,2403.8,2403.7,3.13418806]
[1728100515681,3.12113882,2403.8,2403.7,4.52076809]
[1728100516474,0.3958,2403.8,2403.7,4.52076809]
[1728100518487,0.3958,2403.8,2403.7,3.13418806]
[1728100518784,0.3958,2403.8,2403.7,4.52151023]
[1728100519186,0.68699,2403.8,2403.7,2.77381023]
[1728100519384,1.48269,2403.8,2403.7,2.77381023]
[1728100520088,4.20802882,2403.8,2403.7,2.77381023]
[1728100521187,6.69269,2403.8,2403.7,1.38648806]
[1728100521382,12.69269,2403.8,2403.7,1.38648806]
[1728100521782,15.67597011,2403.8,2403.2,1.99932374]
[1728100522082,0.29125,2403.3,2403.0,3.37392374]
[1728100522398,0.29125,2403.3,2403.1,0.29127]
[1728100522885,5.9367237,2403.4,2403.0,2.15748]
[1728100522886,0.29126,2403.2,2403.0,2.15748]
[1728100523091,0.29126,2403.2,2403.0,3.06548]
[1728100523390,0.29126,2403.2,2403.1,1.05]
[1728100526788,0.29127,2403.1,2403.0,0.8162]
[1728100527897,3.49907,2403.1,2403.0,0.8162]
[1728100529783,1.8438,2403.3,2403.0,0.8162]
[1728100529988,0.29127,2403.2,2403.0,0.8162]